fUSD/lending_fUSD_20251024
["ID","MTS","AMOUNT","RATE_DAILY","PERIOD"]
[392309757,1761324654575,-500.0,0.00039178,30]
[392309758,1761324654586,-500.0,0.00039178,30]
[392309759,1761324654596,-500.0,0.00039178,30]
[392309760,1761324654605,-500.0,0.00039178,30]
[392309761,1761324654615,-500.0,0.00039178,30]
[392309762,1761324654625,-708.78,0.00039178,30]
[392309763,1761324654634,-500.0,0.00039178,30]
[392309764,1761324654644,-500.0,0.00039178,30]
[392309765,1761324654654,-500.0,0.00039178,30]
[392309766,1761324654663,-500.0,0.00039178,30]
[392309767,1761324654673,-642.4,0.00039178,30]
[392309768,1761324654683,-500.0,0.00039178,30]
[392309769,1761324654692,-500.0,0.00039178,2]
[392309770,1761324654701,-500.0,0.00039178,30]
[392309771,1761324654711,-150.0,0.00039275,7]
[392309772,1761324654721,-168.0,0.00039313,2]
[392309773,1761324654730,-899.87031615,0.00039326,2]
[392309774,1761324654740,-7000.0,0.0003942,2]
[392309775,1761324654749,-168.0,0.00039439,7]
[392309776,1761324654760,-22416.29779225,0.00039442,3]
[392309779,1761325324212,300.0,0.00022,120]
[392309780,1761325452656,2012.14,0.00017,60]
[392309782,1761325473765,248.84,0.00013699,2]
[392309802,1761325831439,-1646.58591144,0.0002,2]
[392309803,1761325831450,-2412.24959229,0.0002,2]
[392309804,1761325831528,-4478.86351617,0.0002,2]
[392309805,1761325831538,-251.6559542,0.0002,2]
[392309806,1761325831549,-1017.81337131,0.0002,2]
[392309807,1761325831558,-154.05714812,0.00020187,2]
[392309808,1761325831598,-94.78285188,0.00020187,2]
[392309809,1761325831608,-250.0,0.00022,2]
[392309810,1761325831618,-248.84,0.00026676,2]
[392309811,1761325831627,-248.84,0.00033165,2]
[392309812,1761325831636,-872.61123685,0.00034684,3]
[392309813,1761325831651,-1627.38876315,0.00034684,3]
[392309814,1761325831660,-150.0,0.00035729,7]
[392309815,1761325831670,-476.35224409,0.00035908,2]
[392309816,1761325831679,-150.0,0.00036126,7]
[392309817,1761325831688,-170.27,0.0003633,120]
[392309818,1761325831697,-2500.0,0.00036521,4]
[392309819,1761325831707,-150.0,0.00036523,7]
[392309820,1761325831715,-250.0,0.00036599,2]
[392309821,1761325831725,-2370.24,0.00036621,2]
[392309822,1761325831734,-214.63,0.00036624,2]
[392309823,1761325831743,-281.85,0.00036664,2]
[392309824,1761325831752,-150.0,0.00036773,2]
[392309825,1761325831761,-200.0,0.00036773,30]
[392309826,1761325831770,-500.0,0.00036775,30]
[392309827,1761325831778,-500.0,0.00036775,30]
[392309828,1761325831787,-500.0,0.00036775,30]
[392309829,1761325831796,-500.0,0.00036775,30]
[392309830,1761325831804,-500.0,0.00036775,30]
[392309831,1761325831813,-500.0,0.00036775,30]
[392309832,1761325831822,-502.58030001,0.00036775,30]
[392309833,1761325831831,-439.885,0.00036888,7]
[392309834,1761325831840,-150.0,0.0003692,7]
[392309835,1761325831849,-292.10774197,0.00037161,15]
[392309836,1761325831858,-500.0,0.00037161,15]
[392309837,1761325831866,-221.08795086,0.00037161,15]
[392309838,1761325831874,-179.85441785,0.00037161,15]
[392309839,1761325831883,-150.0,0.00037161,2]
[392309840,1761325831891,-5041.66029752,0.00037162,7]
[392309842,1761325831902,-30698.37635224,0.00037162,7]
[392309843,1761325831912,-270.69232887,0.00037162,7]
[392309857,1761325837477,-2130.15051127,0.00037162,7]
[392309963,1761325839703,-862.40233327,0.00036993,2]
[392309964,1761325839718,-1880.18331275,0.00037162,7]
[392309965,1761325839730,-3236.96719735,0.00037162,7]
[392309966,1761325839740,-786.28061926,0.00037179,2]
[392309967,1761325839751,-2569.18000013,0.00037179,2]
[392309968,1761325839869,-12997.53938061,0.00037179,2]
[392309969,1761325839879,-666.0,0.00037225,3]
[392309970,1761325839888,-150.0,0.00037317,7]
[392309971,1761325839897,-862.40233327,0.00037507,2]
[392309972,1761325839910,-539.25361952,0.00037598,2]
[392309973,1761325839919,-150.0,0.00037673,2]
[392309974,1761325839929,-150.0,0.00037673,120]
[392309975,1761325839939,-610.0,0.00037705,2]
[392309976,1761325839948,-150.0,0.00037714,7]
[392309977,1761325839957,-862.40233327,0.00037723,2]
[392309978,1761325839967,-1000.0,0.0003777,15]
[392309979,1761325839976,-2000.0,0.000378,2]
[392309980,1761325839986,-862.40233327,0.00037853,2]
[392309981,1761325839995,-4538.706,0.00037884,2]
[392309982,1761325840004,-3487.0,0.00037884,2]
[392309984,1761325840015,-6456.0,0.00037884,2]
[392309986,1761325840023,-558.0,0.00037884,2]
[392309987,1761325840032,-4283.22761928,0.00038,3]
[392309988,1761325840042,-500.0,0.00038074,30]
[392309989,1761325840051,-150.0,0.00038111,7]
[392309990,1761325840061,-500.0,0.00038141,5]
[392309991,1761325840074,-500.0,0.00038145,30]
[392309992,1761325840084,-500.0,0.00038198,30]
[392309993,1761325840093,-500.0,0.00038241,30]
[392309994,1761325840105,-6772.12420127,0.00038256,2]
[392309995,1761325840116,-500.0,0.00038309,30]
[392309996,1761325840126,-500.0,0.00038326,30]
[392309997,1761325840135,-862.40233327,0.00038335,2]
[392309998,1761325840146,-395.921,0.00038355,51]
[392309999,1761325840156,-500.0,0.00038355,2]
[392310000,1761325840166,-500.0,0.00038355,30]
[392310001,1761325840175,-500.0,0.00038356,30]
[392310002,1761325840185,-836.95,0.00038356,30]
[392310003,1761325840194,-500.0,0.00038356,30]
[392310004,1761325840204,-500.0,0.00038356,30]
[392310005,1761325840214,-545.39,0.00038356,30]
[392310006,1761325840223,-500.0,0.00038356,30]
[392310007,1761325840232,-500.0,0.00038356,30]
[392310008,1761325840242,-500.0,0.00038356,30]
[392310009,1761325840251,-500.0,0.00038356,30]
[392310010,1761325840260,-500.0,0.00038356,30]
[392310011,1761325840269,-500.0,0.00038356,30]
[392310012,1761325840279,-500.0,0.00038356,30]
[392310013,1761325840288,-500.0,0.00038356,30]
[392310014,1761325840298,-546.81378044,0.00038356,30]
[392310015,1761325840307,-500.0,0.00038356,30]
[392310016,1761325840316,-500.0,0.00038356,30]
[392310017,1761325840326,-500.0,0.00038356,30]
[392310018,1761325840336,-500.0,0.00038356,30]
[392310019,1761325840346,-731.11,0.00038356,30]
[392310020,1761325840357,-500.0,0.00038356,30]
[392310021,1761325840368,-500.0,0.00038356,30]
[392310022,1761325840378,-608.13,0.00038356,30]
[392310023,1761325840388,-189.03041823,0.00038356,30]
[392310024,1761325840398,-500.0,0.00038356,30]
[392310025,1761325840407,-500.0,0.00038356,30]
[392310026,1761325840416,-566.63781265,0.00038356,30]
[392310027,1761325840426,-500.0,0.00038356,30]
[392310028,1761325840436,-500.0,0.00038356,30]
[392310029,1761325840445,-500.0,0.00038356,2]
[392310030,1761325840454,-500.0,0.00038356,30]
[392310031,1761325840464,-500.0,0.00038356,30]
[392310032,1761325840474,-500.0,0.00038356,30]
[392310033,1761325840483,-587.61,0.00038356,30]
[392310034,1761325840493,-500.0,0.00038356,30]
[392310035,1761325840503,-546.68,0.00038356,30]
[392310036,1761325840513,-500.0,0.00038356,30]
[392310037,1761325840523,-500.0,0.00038356,30]
[392310038,1761325840533,-544.06,0.00038356,30]
[392310039,1761325840543,-500.0,0.00038356,30]
[392310040,1761325840552,-500.0,0.00038356,30]
[392310041,1761325840562,-500.0,0.00038356,30]
[392310042,1761325840572,-500.0,0.00038356,30]
[392310043,1761325840582,-535.3,0.00038356,30]
[392310044,1761325840591,-374.7437299,0.00038356,30]
[392310045,1761325840601,-524.46,0.00038356,30]
[392310046,1761325840611,-500.0,0.00038356,30]
[392310047,1761325840621,-500.0,0.00038356,30]
[392310048,1761325840630,-533.0430097,0.00038356,30]
[392310049,1761325840640,-500.0,0.00038356,30]
[392310050,1761325840649,-500.0,0.00038356,30]
[392310051,1761325840658,-500.0,0.00038356,30]
[392310052,1761325840668,-500.0,0.00038356,30]
[392310053,1761325840678,-500.0,0.00038356,30]
[392310054,1761325840687,-500.0,0.00038356,30]
[392310055,1761325840697,-564.68,0.00038356,30]
[392310056,1761325840706,-500.0,0.00038356,30]
[392310057,1761325840716,-648.15,0.00038356,30]
[392310058,1761325840725,-772.37,0.00038356,30]
[392310059,1761325840734,-500.0,0.00038356,30]
[392310060,1761325840743,-500.0,0.00038356,30]
[392310061,1761325840753,-500.0,0.00038356,30]
[392310062,1761325840763,-500.0,0.00038356,30]
[392310063,1761325840772,-500.0,0.00038356,30]
[392310064,1761325840782,-500.0,0.00038356,30]
[392310065,1761325840791,-157.75833212,0.00038356,30]
[392310066,1761325840801,-500.0,0.00038356,30]
[392310067,1761325840810,-500.0,0.00038356,30]
[392310068,1761325840820,-500.0,0.00038356,2]
[392310069,1761325840830,-500.0,0.00038356,30]
[392310070,1761325840839,-500.0,0.00038356,30]
[392310071,1761325840848,-500.0,0.00038356,30]
[392310072,1761325840858,-500.0,0.00038356,30]
[392310073,1761325840867,-500.0,0.00038356,30]
[392310074,1761325840877,-500.0,0.00038356,30]
[392310075,1761325840887,-500.0,0.00038356,30]
[392310076,1761325840896,-500.0,0.00038356,30]
[392310077,1761325840905,-500.0,0.00038356,30]
[392310078,1761325840915,-738.39,0.00038356,30]
[392310079,1761325840924,-500.0,0.00038356,30]
[392310080,1761325840934,-609.55578838,0.00038356,30]
[392310081,1761325840943,-500.0,0.00038356,30]
[392310082,1761325840953,-500.0,0.00038356,30]
[392310083,1761325840962,-1665.92,0.00038356,2]
[392310084,1761325840972,-500.0,0.00038356,30]
[392310085,1761325840981,-500.0,0.00038356,30]
[392310086,1761325840990,-500.0,0.00038356,30]
[392310087,1761325841000,-500.0,0.00038356,30]
[392310088,1761325841009,-500.0,0.00038356,30]
[392310089,1761325841019,-500.0,0.00038356,30]
[392310090,1761325841029,-500.0,0.00038356,30]
[392310091,1761325841039,-500.0,0.00038356,30]
[392310092,1761325841049,-500.0,0.00038356,30]
[392310093,1761325841059,-162.50175128,0.00038356,30]
[392310094,1761325841071,-555.86,0.00038356,30]
[392310095,1761325841081,-500.0,0.00038356,30]
[392310096,1761325841091,-500.0,0.00038356,30]
[392310097,1761325841100,-598.83,0.00038356,30]
[392310098,1761325841110,-500.0,0.00038356,30]
[392310099,1761325841120,-500.0,0.00038356,30]
[392310100,1761325841129,-634.12,0.00038356,30]
[392310101,1761325841139,-500.0,0.00038356,30]
[392310102,1761325841148,-500.0,0.00038356,30]
[392310103,1761325841158,-500.0,0.00038356,30]
[392310104,1761325841168,-500.0,0.00038356,30]
[392310105,1761325841177,-500.0,0.00038356,30]
[392310106,1761325841187,-500.0,0.00038356,30]
[392310107,1761325841196,-504.9,0.00038356,30]
[392310108,1761325841207,-500.0,0.00038356,30]
[392310109,1761325841218,-500.0,0.00038356,30]
[392310110,1761325841227,-597.94,0.00038356,30]
[392310111,1761325841236,-500.0,0.00038356,30]
[392310112,1761325841246,-500.0,0.00038356,30]
[392310113,1761325841255,-514.4,0.00038356,30]
[392310114,1761325841265,-500.0,0.00038356,30]
[392310115,1761325841274,-500.0,0.00038356,30]
[392310116,1761325841283,-500.0,0.00038356,30]
[392310117,1761325841293,-500.0,0.00038356,30]
[392310118,1761325841303,-500.0,0.00038356,30]
[392310119,1761325841313,-500.0,0.00038356,30]
[392310120,1761325841323,-300.0,0.00038356,2]
[392310121,1761325841333,-500.0,0.00038356,30]
[392310122,1761325841342,-500.0,0.00038356,30]
[392310123,1761325841352,-500.0,0.00038356,30]
[392310124,1761325841361,-504.43,0.00038356,30]
[392310125,1761325841370,-500.0,0.00038356,30]
[392310126,1761325841380,-500.0,0.00038356,30]
[392310127,1761325841389,-500.0,0.00038356,30]
[392310128,1761325841398,-500.0,0.00038356,30]
[392310129,1761325841407,-500.0,0.00038356,30]
[392310130,1761325841417,-500.0,0.00038356,30]
[392310131,1761325841426,-500.0,0.00038356,30]
[392310132,1761325841436,-500.0,0.00038356,30]
[392310133,1761325841445,-500.0,0.00038356,30]
[392310134,1761325841455,-500.0,0.00038356,30]
[392310135,1761325841464,-500.0,0.00038356,30]
[392310136,1761325841473,-188.32702141,0.00038356,30]
[392310137,1761325841483,-500.0,0.00038356,30]
[392310138,1761325841493,-500.0,0.00038356,30]
[392310139,1761325841502,-500.0,0.00038356,30]
[392310140,1761325841512,-500.0,0.00038356,30]
[392310141,1761325841522,-743.61,0.00038356,30]
[392310142,1761325841532,-500.0,0.00038356,30]
[392310143,1761325841542,-500.0,0.00038356,30]
[392310144,1761325841551,-533.0,0.00038356,30]
[392310145,1761325841561,-500.0,0.00038356,30]
[392310146,1761325841571,-500.0,0.00038356,30]
[392310147,1761325841581,-500.0,0.00038356,30]
[392310148,1761325841591,-501.84,0.00038356,30]
[392310149,1761325841601,-500.0,0.00038356,30]
[392310150,1761325841610,-500.0,0.00038356,30]
[392310151,1761325841620,-500.0,0.00038356,30]
[392310152,1761325841630,-500.0,0.00038356,30]
[392310153,1761325841639,-500.0,0.00038356,30]
[392310154,1761325841650,-500.0,0.00038356,30]
[392310155,1761325841660,-500.0,0.00038356,30]
[392310156,1761325841670,-500.0,0.00038356,30]
[392310157,1761325841680,-500.0,0.00038356,30]
[392310158,1761325841689,-500.0,0.00038356,30]
[392310159,1761325841699,-500.0,0.00038356,30]
[392310160,1761325841708,-500.0,0.00038356,30]
[392310161,1761325841718,-500.0,0.00038356,30]
[392310162,1761325841727,-500.0,0.00038356,30]
[392310163,1761325841736,-550.38,0.00038356,30]
[392310164,1761325841746,-500.0,0.00038356,30]
[392310165,1761325841756,-500.0,0.00038356,30]
[392310166,1761325841766,-638.3,0.00038356,30]
[392310167,1761325841776,-500.0,0.00038356,30]
[392310168,1761325841786,-500.0,0.00038356,30]
[392310169,1761325841795,-500.0,0.00038356,30]
[392310170,1761325841804,-500.0,0.00038356,30]
[392310171,1761325841814,-500.0,0.00038356,30]
[392310172,1761325841823,-522.06,0.00038356,30]
[392310173,1761325841832,-500.0,0.00038356,30]
[392310174,1761325841841,-500.0,0.00038356,30]
[392310175,1761325841851,-500.0,0.00038356,30]
[392310176,1761325841860,-500.0,0.00038356,30]
[392310177,1761325841870,-500.0,0.00038356,30]
[392310178,1761325841879,-500.0,0.00038356,30]
[392310179,1761325841889,-500.0,0.00038356,30]
[392310180,1761325841899,-416.8461179,0.00038356,30]
[392310181,1761325841908,-500.0,0.00038356,30]
[392310182,1761325841917,-500.0,0.00038356,30]
[392310183,1761325841927,-605.13,0.00038356,30]
[392310184,1761325841936,-500.0,0.00038356,30]
[392310185,1761325841946,-500.0,0.00038356,30]
[392310186,1761325841956,-500.0,0.00038356,30]
[392310187,1761325841965,-500.0,0.00038356,30]
[392310188,1761325841975,-500.0,0.00038356,30]
[392310189,1761325841984,-500.0,0.00038356,30]
[392310190,1761325841993,-202.32477001,0.00038356,30]
[392310191,1761325842003,-528.41,0.00038356,30]
[392310192,1761325842013,-500.0,0.00038356,30]
[392310193,1761325842022,-500.0,0.00038356,30]
[392310194,1761325842031,-500.0,0.00038356,30]
[392310195,1761325842041,-500.0,0.00038356,30]
[392310196,1761325842051,-500.0,0.00038356,30]
[392310197,1761325842061,-500.0,0.00038356,30]
[392310198,1761325842071,-931.19,0.00038356,30]
[392310199,1761325842082,-500.0,0.00038356,30]
[392310200,1761325842092,-584.96,0.00038356,30]
[392310201,1761325842101,-500.0,0.00038356,30]
[392310202,1761325842111,-500.0,0.00038356,30]
[392310203,1761325842120,-500.0,0.00038356,30]
[392310204,1761325842130,-500.0,0.00038356,30]
[392310207,1761325842463,-500.0,0.00038356,30]
[392310208,1761325842473,-500.0,0.00038356,30]
[392310210,1761325842482,-500.0,0.00038356,30]
[392310212,1761325842492,-500.0,0.00038356,30]
[392310214,1761325842502,-500.0,0.00038356,30]
[392310215,1761325842512,-500.0,0.00038356,30]
[392310217,1761325842521,-500.0,0.00038356,30]
[392310220,1761325842531,-500.0,0.00038356,30]
[392310222,1761325842541,-533.39276155,0.00038356,30]
[392310224,1761325842551,-692.94,0.00038356,30]
[392310225,1761325842561,-256.29153562,0.00038356,30]
[392310226,1761325842570,-500.0,0.00038356,30]
[392310227,1761325842580,-500.0,0.00038356,30]
[392310228,1761325842590,-273.85,0.00038356,14]
[392310229,1761325842599,-707.52,0.00038356,30]
[392310230,1761325842608,-500.0,0.00038356,30]
[392310231,1761325842618,-32333.82,0.00038356,30]
[392310232,1761325842628,-574.62,0.00038356,30]
[392310233,1761325842638,-500.0,0.00038356,30]
[392310234,1761325842648,-500.0,0.00038356,30]
[392310235,1761325842658,-500.0,0.00038356,30]
[392310236,1761325842667,-679.35,0.00038356,30]
[392310237,1761325842677,-500.0,0.00038356,30]
[392310238,1761325842688,-500.0,0.00038356,30]
[392310239,1761325842698,-500.0,0.00038356,30]
[392310240,1761325842708,-500.0,0.00038356,30]
[392310241,1761325842717,-500.0,0.00038356,30]
[392310242,1761325842727,-547.41,0.00038356,30]
[392310243,1761325842736,-500.0,0.00038356,30]
[392310244,1761325842746,-506.32,0.00038356,30]
[392310245,1761325842756,-500.0,0.00038356,30]
[392310246,1761325842765,-500.0,0.00038356,30]
[392310247,1761325842775,-500.0,0.00038356,30]
[392310248,1761325842785,-500.0,0.00038356,30]
[392310249,1761325842795,-500.0,0.00038356,30]
[392310250,1761325842805,-500.0,0.00038356,30]
[392310251,1761325842814,-500.0,0.00038356,30]
[392310252,1761325842824,-500.0,0.00038356,30]
[392310253,1761325842833,-500.0,0.00038356,30]
[392310254,1761325842842,-500.0,0.00038356,30]
[392310255,1761325842852,-500.0,0.00038356,30]
[392310256,1761325842861,-500.0,0.00038356,30]
[392310257,1761325842871,-500.0,0.00038356,30]
[392310258,1761325842881,-1035.21,0.00038356,30]
[392310259,1761325842890,-500.0,0.00038356,30]
[392310260,1761325842899,-500.0,0.00038356,30]
[392310261,1761325842909,-500.0,0.00038356,30]
[392310262,1761325842918,-638.34,0.00038356,30]
[392310263,1761325842927,-500.0,0.00038356,30]
[392310264,1761325842937,-594.61038538,0.00038356,30]
[392310265,1761325842946,-500.0,0.00038356,30]
[392310266,1761325842956,-500.0,0.00038356,30]
[392310267,1761325842965,-500.0,0.00038356,30]
[392310269,1761325842974,-500.0,0.00038356,30]
[392310271,1761325842983,-836.98,0.00038356,30]
[392310273,1761325842993,-500.0,0.00038356,30]
[392310274,1761325843002,-500.0,0.00038356,30]
[392310275,1761325843011,-500.0,0.00038356,30]
[392310276,1761325843020,-500.0,0.00038356,30]
[392310277,1761325843030,-500.0,0.00038356,30]
[392310278,1761325843039,-500.0,0.00038356,30]
[392310279,1761325843049,-500.0,0.00038356,30]
[392310280,1761325843059,-1577.85,0.00038356,30]
[392310281,1761325843071,-500.0,0.00038356,30]
[392310282,1761325843081,-525.05,0.00038356,30]
[392310283,1761325843090,-500.0,0.00038356,30]
[392310284,1761325843100,-500.0,0.00038356,30]
[392310285,1761325843110,-500.0,0.00038356,30]
[392310286,1761325843119,-500.0,0.00038356,30]
[392310287,1761325843132,-547.37,0.00038356,30]
[392310288,1761325843142,-500.0,0.00038356,30]
[392310289,1761325843152,-4000.0,0.00038356,5]
[392310290,1761325843161,-862.40233327,0.00038366,2]
[392310291,1761325843171,-163.43,0.0003848,2]
[392310292,1761325843181,-500.0,0.00038481,30]
[392310293,1761325843190,-527.62036572,0.0003849,30]
[392310294,1761325843200,-19420.19576289,0.0003849,30]
[392310295,1761325843209,-5396.15692806,0.0003849,30]
[392310296,1761325843219,-500.0,0.00038494,30]
[392310297,1761325843228,-17805.2072179,0.000385,3]
[392310298,1761325843237,-150.0,0.00038508,7]
[392310299,1761325843247,-157.66073908,0.0003851,15]
[392310300,1761325843256,-956.44608982,0.0003852,10]
[392310301,1761325843266,-500.0,0.0003856,30]
[392310302,1761325843276,-500.0,0.00038568,30]
[392310303,1761325843285,-166.66,0.00038585,2]
[392310304,1761325843294,-17805.2072179,0.000386,3]
[392310305,1761325843303,-17805.2072179,0.00038609,3]
[392310306,1761325843312,-71220.8288715,0.0003861,3]
[392310307,1761325843322,-476.35224409,0.0003861,3]
[392310308,1761325843332,-53415.6216536,0.0003861,3]
[392310309,1761325843342,-8848.63221548,0.0003861,3]
[392310310,1761325843352,-151.0,0.00038617,14]
[392310311,1761325843370,-500.0,0.00038619,2]
[392310312,1761325843382,-17805.2072179,0.00038619,3]
[392310313,1761325843392,-4424.31610774,0.00038619,3]
[392310314,1761325843402,-500.0,0.0003862,30]
[392310315,1761325843412,-610.13,0.0003862,30]
[392310316,1761325843422,-261.8676964,0.0003862,30]
[392310317,1761325843431,-500.0,0.0003862,30]
[392310318,1761325843442,-500.0,0.0003862,30]
[392310319,1761325843452,-500.0,0.0003862,30]
[392310320,1761325843462,-500.0,0.0003862,30]
[392310321,1761325843474,-500.0,0.0003862,30]
[392310322,1761325843484,-500.0,0.0003862,30]
[392310323,1761325843495,-500.0,0.0003862,30]
[392310324,1761325843504,-500.0,0.0003862,30]
[392310325,1761325843514,-500.0,0.0003862,30]
[392310326,1761325843524,-500.0,0.0003862,30]
[392310327,1761325843534,-500.0,0.0003862,30]
[392310328,1761325843544,-500.0,0.0003862,30]
[392310329,1761325843554,-500.0,0.0003862,30]
[392310330,1761325843563,-500.0,0.0003862,30]
[392310331,1761325843573,-500.0,0.0003862,30]
[392310332,1761325843583,-500.0,0.0003862,30]
[392310333,1761325843593,-500.0,0.0003862,30]
[392310334,1761325843603,-500.0,0.0003862,30]
[392310335,1761325843613,-347.67403177,0.0003862,30]
[392310336,1761325843622,-500.0,0.0003862,30]
[392310337,1761325843632,-205.07568247,0.0003862,30]
[392310338,1761325843642,-500.0,0.0003862,30]
[392310339,1761325843652,-500.0,0.0003862,30]
[392310340,1761325843662,-500.0,0.0003862,30]
[392310341,1761325843671,-500.0,0.0003862,30]
[392310342,1761325843681,-500.0,0.0003862,30]
[392310343,1761325843692,-500.0,0.0003862,30]
[392310344,1761325843701,-502.31,0.0003862,30]
[392310345,1761325843711,-152.72648808,0.0003862,30]
[392310346,1761325843721,-500.0,0.0003862,30]
[392310347,1761325843731,-771.22,0.0003862,30]
[392310348,1761325843740,-500.0,0.0003862,30]
[392310349,1761325843750,-500.0,0.0003862,30]
[392310350,1761325843759,-500.0,0.0003862,30]
[392310351,1761325843769,-500.0,0.0003862,30]
[392310352,1761325843779,-500.0,0.0003862,30]
[392310353,1761325843789,-406.81553224,0.0003862,30]
[392310354,1761325843799,-500.0,0.0003862,30]
[392310355,1761325843809,-500.0,0.0003862,30]
[392310356,1761325843818,-500.0,0.0003862,30]
[392310357,1761325843829,-500.0,0.0003862,30]
[392310358,1761325843839,-500.0,0.0003862,30]
[392310359,1761325843849,-500.0,0.0003862,30]
[392310360,1761325843860,-500.0,0.0003862,30]
[392310361,1761325843870,-500.65,0.0003862,30]
[392310362,1761325843879,-500.0,0.0003862,30]
[392310363,1761325843889,-500.0,0.0003862,30]
[392310364,1761325843902,-500.0,0.0003862,30]
[392310365,1761325843913,-500.0,0.0003862,30]
[392310366,1761325843923,-500.0,0.0003862,30]
[392310367,1761325843933,-500.0,0.0003862,30]
[392310368,1761325843943,-500.0,0.0003862,30]
[392310369,1761325843953,-500.0,0.0003862,30]
[392310370,1761325843963,-500.0,0.0003862,30]
[392310371,1761325843974,-500.0,0.0003862,30]
[392310372,1761325843984,-500.0,0.0003862,30]
[392310373,1761325843994,-500.0,0.0003862,30]
[392310374,1761325844004,-500.0,0.0003862,30]
[392310375,1761325844014,-620.2252073,0.0003862,30]
[392310376,1761325844024,-577.44,0.0003862,30]
[392310377,1761325844034,-457.42195687,0.0003862,30]
[392310378,1761325844044,-500.0,0.0003862,30]
[392310379,1761325844054,-500.0,0.0003862,30]
[392310380,1761325844064,-500.0,0.0003862,30]
[392310381,1761325844079,-500.0,0.0003862,30]
[392310382,1761325844090,-500.0,0.0003862,30]
[392310383,1761325844100,-500.0,0.0003862,30]
[392310384,1761325844111,-500.0,0.0003862,30]
[392310385,1761325844121,-500.0,0.0003862,30]
[392310386,1761325844131,-500.0,0.0003862,30]
[392310387,1761325844142,-500.0,0.0003862,30]
[392310388,1761325844154,-500.0,0.0003862,30]
[392310389,1761325844164,-500.0,0.0003862,30]
[392310390,1761325844174,-214.20737217,0.0003862,30]
[392310391,1761325844185,-600.545527,0.0003862,30]
[392310392,1761325844195,-151.258158,0.0003862,30]
[392310393,1761325844205,-500.0,0.0003862,30]
[392310394,1761325844215,-500.0,0.0003862,30]
[392310395,1761325844225,-158.779104,0.0003862,30]
[392310396,1761325844235,-152.248476,0.0003862,30]
[392310397,1761325844245,-500.0,0.0003862,30]
[392310398,1761325844255,-190.124099,0.0003862,30]
[392310399,1761325844266,-500.0,0.0003862,30]
[392310400,1761325844276,-500.0,0.0003862,30]
[392310401,1761325844289,-500.0,0.0003862,30]
[392310402,1761325844299,-964.449092,0.0003862,30]
[392310403,1761325844310,-500.0,0.0003862,30]
[392310404,1761325844320,-500.0,0.0003862,30]
[392310405,1761325844330,-500.0,0.0003862,30]
[392310406,1761325844341,-581.55,0.0003862,30]
[392310407,1761325844352,-500.0,0.0003862,30]
[392310408,1761325844362,-500.0,0.0003862,30]
[392310409,1761325844372,-517.86,0.0003862,30]
[392310410,1761325844383,-307.17,0.0003862,2]
[392310411,1761325844393,-244.65426122,0.0003862,30]
[392310412,1761325844403,-500.0,0.0003862,30]